fUSD/lending_fUSD_20240905
["ID","MTS","AMOUNT","RATE_DAILY","PERIOD"]
[337270086,1725564639080,-2166.78342138,0.00014977,3]
[337270087,1725564639091,-2355.0,0.00014977,3]
[337270088,1725564639103,-6343.80348218,0.00014977,3]
[337270091,1725564639927,-1779.92084676,0.00014977,3]
[337270092,1725564639938,-25.17915324,0.00014978,3]
[337270093,1725564639949,-1561.6,0.00014978,3]
[337270094,1725564639961,-1850.0,0.00014978,3]
[337270095,1725564639973,-902.16144431,0.00014978,3]
[337270096,1725564639984,-282.0,0.00014978,3]
[337270097,1725564639995,-2954.1894928,0.00014978,3]
[337270098,1725564640076,-662.70634916,0.00014978,3]
[337270099,1725564640088,-630.25841339,0.00014978,3]
[337270100,1725564640098,-1474.00726478,0.00014978,3]
[337270101,1725564640117,-428.1445523,0.00014978,3]
[337270102,1725564640130,-441.48538942,0.00014978,3]
[337270103,1725564640141,-2141.25728077,0.00014978,3]
[337270104,1725564640152,-509.05398266,0.00014978,3]
[337270105,1725564640353,-794.83021713,0.00014978,3]
[337270106,1725564640365,-293.10079892,0.00014978,3]
[337270107,1725564640557,-939.63137312,0.00014978,3]
[337270108,1725564640568,-1825.57743907,0.00014978,3]
[337270109,1725564640579,-505.53116172,0.00014978,3]
[337270110,1725564640590,-7228.62947187,0.00014978,3]
[337270111,1725564640601,-2476.73398211,0.00014978,3]
[337270112,1725564640611,-4276.48182047,0.00014978,3]
[337270113,1725564640623,-891.24175846,0.00014978,3]
[337270114,1725564640632,-2390.65824154,0.00014979,3]
[337270115,1725564640642,-3403.60735412,0.00014979,3]
[337270118,1725564642920,-3030.74809654,0.00014979,3]
[337270119,1725564642930,-500.0,0.00014983,2]
[337270120,1725564642939,-659.17,0.00014983,2]
[337270121,1725564642948,-500.0,0.00014983,2]
[337270122,1725564642957,-500.0,0.00014983,2]
[337270123,1725564642966,-203.01190346,0.00014983,2]
[337270124,1725564643168,-296.98809654,0.00014983,2]
[337270125,1725564643177,-295.01190336,0.00014983,2]
[337270126,1725564643190,-181.84809664,0.00014983,2]
[337270127,1725564643200,-500.0,0.00014983,2]
[337270128,1725564643209,-539.07,0.00014983,2]
[337270129,1725564643219,-53.52190336,0.00014983,2]
[337270130,1725564643230,-446.47809664,0.00014983,2]
[337270131,1725564643240,-265.34702694,0.00014983,2]
[337270132,1725564643255,-234.65297306,0.00014983,2]
[337270133,1725564643264,-500.0,0.00014983,2]
[337270134,1725564643273,-327.86674798,0.00014983,2]
[337270146,1725564646005,-317.13339458,0.00014888,2]
[337270147,1725564646015,-172.13325202,0.00014983,2]
[337270148,1725564646025,-500.0,0.00014983,2]
[337270149,1725564646035,-919.07,0.00014983,2]
[337270150,1725564646044,-500.0,0.00014983,2]
[337270151,1725564646055,-388.60338206,0.00014983,2]
[337270152,1725564646065,-513.63276293,0.00014983,2]
[337270153,1725564646075,-500.0,0.00014983,2]
[337270154,1725564646086,-500.0,0.00014984,2]
[337270155,1725564646095,-58.68114239,0.00014984,2]
[337270156,1725564646108,-441.31885761,0.00014984,2]
[337270157,1725564646117,-151.48114238,0.00014984,2]
[337270158,1725564646131,-272.38501595,0.00014984,2]
[337270159,1725564646142,-98.14260988,0.00014984,2]
[337270160,1725564646151,-500.0,0.00014984,2]
[337270161,1725564646160,-676.27,0.00014984,2]
[337270162,1725564646170,-500.0,0.00014984,2]
[337270163,1725564646179,-500.0,0.00014984,2]
[337270164,1725564646188,-603.77834858,0.00014984,2]
[337270165,1725564646197,-500.0,0.00014984,2]
[337270166,1725564646206,-500.0,0.00014984,2]
[337270167,1725564646215,-264.67754849,0.00014984,2]
[337270168,1725564646224,-500.0,0.00014984,2]
[337270169,1725564646233,-500.0,0.00014984,2]
[337270170,1725564646242,-504.05,0.00014984,2]
[337270171,1725564646251,-500.0,0.00014984,2]
[337270172,1725564646261,-503.84,0.00014984,2]
[337270173,1725564646270,-500.0,0.00014984,2]
[337270174,1725564646279,-380.9267294,0.00014984,2]
[337270175,1725564646291,-500.0,0.00014984,2]
[337270176,1725564646299,-500.0,0.00014984,2]
[337270177,1725564646309,-500.0,0.00014984,2]
[337270178,1725564646318,-500.0,0.00014984,2]
[337270179,1725564646328,-500.0,0.00014984,2]
[337270180,1725564646338,-500.0,0.00014984,2]
[337270181,1725564646348,-500.0,0.00014984,2]
[337270182,1725564646357,-500.0,0.00014984,2]
[337270183,1725564646367,-618.08,0.00014984,2]
[337270184,1725564646378,-687.17,0.00014984,2]
[337270185,1725564646387,-506.99,0.00014984,2]
[337270186,1725564646396,-500.0,0.00014984,2]
[337270187,1725564646405,-500.0,0.00014984,2]
[337270188,1725564646416,-432.8215207,0.00014984,2]
[337270189,1725564646426,-500.0,0.00014984,2]
[337270190,1725564646435,-611.19,0.00014984,2]
[337270191,1725564646444,-500.0,0.00014984,2]
[337270192,1725564646453,-500.0,0.00014984,2]
[337270193,1725564646463,-500.0,0.00014984,2]
[337270194,1725564646472,-500.0,0.00014984,2]
[337270195,1725564646482,-500.0,0.00014984,2]
[337270196,1725564646492,-500.0,0.00014984,2]
[337270197,1725564646501,-500.0,0.00014984,2]
[337270198,1725564646511,-500.0,0.00014984,2]
[337270199,1725564646521,-500.0,0.00014984,2]
[337270200,1725564646532,-500.0,0.00014984,2]
[337270201,1725564646542,-500.0,0.00014984,2]
[337270202,1725564646551,-21.81408569,0.00014984,2]
[337270203,1725564646563,-478.18591431,0.00014984,2]
[337270204,1725564646572,-500.0,0.00014984,2]
[337270205,1725564646581,-147.11408569,0.00014984,2]
[337270206,1725564646592,-391.85591431,0.00014984,2]
[337270207,1725564646603,-781.33,0.00014984,2]
[337270208,1725564646613,-500.0,0.00014984,2]
[337270209,1725564646622,-1022.66242809,0.00014984,2]
[337270210,1725564646639,-2233.36757191,0.00014984,2]
[337270211,1725564646650,-396.33577809,0.00014984,2]
[337270212,1725564646662,-931.98422191,0.00014984,2]
[337270213,1725564646673,-369.39134066,0.00014984,2]
[337270214,1725564722250,-375.0,0.0002736,120]
[337270217,1725565086855,502.25,0.00012041,2]
[337270218,1725565116702,9390.9110237,0.000132,2]
[337270223,1725565634831,477.13,0.00011281,2]
[337270224,1725565749593,2000.00309333,0.00027,120]
[337270225,1725565779026,277.04,0.00010959,2]
[337270226,1725565783855,250.0,0.00013134,2]
[337270227,1725565800815,2113.84,0.00013143,2]
[337270235,1725565832101,-165.47941094,0.00013388,2]
[337270236,1725565832112,-404.61058906,0.00013487,2]
[337270237,1725565832125,-818.38941094,0.00013487,2]
[337270238,1725565832135,-1736.39127381,0.00013488,2]
[337270239,1725565832146,-86.59181172,0.00013488,2]
[337270240,1725565832162,-63.40818828,0.00013488,2]
[337270241,1725565832171,-150.0,0.00013488,2]
[337270242,1725565832181,-150.0,0.00013488,2]
[337270243,1725565832192,-150.0,0.00013488,2]
[337270244,1725565832202,-150.0,0.00013488,2]
[337270245,1725565832214,-150.0,0.00013488,2]
[337270246,1725565832225,-220.32681932,0.00013488,2]
[337270247,1725565832237,-150.0,0.00013509,2]
[337270248,1725565832248,-150.0,0.0001353,2]
[337270249,1725565832260,-477.13,0.00013545,2]
[337270250,1725565832272,-150.0,0.0001355,2]
[337270251,1725565832283,-150.0,0.00013551,2]
[337270252,1725565832299,-150.0,0.00013572,2]
[337270253,1725565832310,-150.0,0.00013593,2]
[337270254,1725565832323,-150.0,0.00013595,2]
[337270255,1725565832334,-150.0,0.00013613,2]
[337270256,1725565832345,-150.0,0.00013614,2]
[337270257,1725565832355,-150.0,0.00013635,2]
[337270259,1725565832366,-150.0,0.00013657,2]
[337270260,1725565832376,-150.0,0.00013675,2]
[337270263,1725565832387,-150.0,0.00013675,2]
[337270265,1725565832398,-150.0,0.00013678,2]
[337270267,1725565832408,-150.0,0.00013699,2]
[337270269,1725565832418,-150.0,0.00013702,2]
[337270270,1725565832428,-150.0,0.0001372,2]
[337270272,1725565832438,-150.0,0.00013737,2]
[337270274,1725565832448,-150.0,0.00013741,2]
[337270276,1725565832457,-150.0,0.00013762,2]
[337270278,1725565832467,-300.0,0.00013782,2]
[337270280,1725565832475,-150.0,0.00013783,2]
[337270282,1725565832485,-150.0,0.000138,2]
[337270284,1725565832494,-150.0,0.000138,2]
[337270286,1725565832503,-150.0,0.00013804,2]
[337270289,1725565832513,-139.1349924,0.00013809,2]
[337270293,1725565832530,-10.8650076,0.00013809,2]
[337270295,1725565832544,-150.0,0.00013825,2]
[337270297,1725565832554,-150.0,0.00013846,2]
[337270299,1725565832563,-150.0,0.00013862,2]
[337270301,1725565832572,-150.0,0.00013862,2]
[337270303,1725565832582,-150.0,0.00013868,2]
[337270305,1725565832591,-150.0,0.00013889,2]
[337270307,1725565832602,-150.0,0.0001391,2]
[337270309,1725565832611,-150.0,0.00013916,2]
[337270311,1725565832620,-1000.0,0.0001392,2]
[337270313,1725565832630,-150.0,0.00013925,2]
[337270315,1725565832639,-197.52,0.00013926,2]
[337270317,1725565832649,-301.64,0.00013926,2]
[337270318,1725565832658,-150.0,0.00013931,2]
[337270321,1725565832668,-150.0,0.00013952,2]
[337270322,1725565832676,-150.0,0.00013973,2]
[337270324,1725565832686,-150.0,0.00013987,2]
[337270326,1725565832695,-150.0,0.00013994,2]
[337270328,1725565832704,-150.0,0.00014015,2]
[337270330,1725565832714,-150.0,0.00014023,2]
[337270332,1725565832723,-150.0,0.00014036,2]
[337270334,1725565832732,-150.0,0.0001405,2]
[337270336,1725565832742,-150.0,0.0001405,2]
[337270338,1725565832751,-150.0,0.00014058,2]
[337270339,1725565832759,-190.666667,0.00014059,2]
[337270341,1725565832769,-150.0,0.00014079,2]
[337270342,1725565832777,-150.0,0.000141,2]
[337270343,1725565832789,-150.0,0.00014112,2]
[337270344,1725565832798,-150.0,0.00014121,2]
[337270345,1725565832807,-150.0,0.0001413,2]
[337270346,1725565832817,-150.0,0.00014142,2]
[337270347,1725565832826,-150.0,0.00014163,2]
[337270348,1725565832835,-150.0,0.00014175,2]
[337270349,1725565832845,-150.0,0.00014184,2]
[337270350,1725565832854,-150.0,0.00014205,2]
[337270351,1725565832864,-150.0,0.00014226,2]
[337270352,1725565832873,-150.0,0.00014237,2]
[337270353,1725565832883,-150.0,0.00014237,2]
[337270354,1725565832892,-150.0,0.00014237,2]
[337270355,1725565832901,-150.0,0.00014248,2]
[337270356,1725565832910,-150.0,0.00014269,2]
[337270357,1725565832919,-150.0,0.0001429,2]
[337270358,1725565832928,-150.0,0.00014299,2]
[337270359,1725565832938,-150.0,0.00014311,2]
[337270360,1725565832946,-150.0,0.00014332,2]
[337270361,1725565832956,-150.0,0.00014344,2]
[337270362,1725565832965,-150.0,0.00014353,2]
[337270363,1725565832976,-150.0,0.00014362,2]
[337270364,1725565832985,-150.0,0.00014374,2]
[337270365,1725565832995,-150.0,0.00014395,2]
[337270366,1725565833004,-150.0,0.00014416,2]
[337270367,1725565833012,-150.0,0.00014424,2]
[337270368,1725565833022,-150.0,0.00014424,2]
[337270369,1725565833030,-150.0,0.00014438,2]
[337270370,1725565833042,-150.0,0.00014451,2]
[337270371,1725565833053,-150.0,0.00014459,2]
[337270372,1725565833062,-150.0,0.0001448,2]
[337270373,1725565833072,-150.0,0.00014487,2]
[337270374,1725565833082,-150.0,0.00014501,2]
[337270375,1725565833091,-150.0,0.00014522,2]
[337270376,1725565833100,-150.0,0.00014543,2]
[337270377,1725565833111,-150.0,0.00014549,2]
[337270378,1725565833120,-157.3,0.00014553,2]
[337270379,1725565833130,-150.0,0.00014558,2]
[337270380,1725565833139,-150.0,0.00014564,2]
[337270381,1725565833151,-150.0,0.00014585,2]
[337270382,1725565833352,-150.0,0.00014606,2]
[337270383,1725565833380,-150.0,0.00014612,2]
[337270384,1725565833389,-150.0,0.00014612,2]
[337270385,1725565833399,-150.0,0.00014627,2]
[337270386,1725565833408,-150.0,0.00014649,2]
[337270387,1725565833417,-150.0,0.00014665,2]
[337270388,1725565833427,-150.0,0.0001467,2]
[337270389,1725565833436,-150.0,0.00014674,2]
[337270390,1725565833446,-150.0,0.00014691,2]
[337270391,1725565833455,-150.0,0.00014712,2]
[337270392,1725565833465,-150.0,0.00014733,2]
[337270393,1725565833475,-150.0,0.00014737,2]
[337270394,1725565833485,-150.0,0.00014754,2]
[337270395,1725565833494,-150.0,0.00014772,2]
[337270396,1725565833503,-150.0,0.00014775,2]
[337270397,1725565833513,-150.0,0.00014796,2]
[337270398,1725565833522,-150.0,0.00014799,2]
[337270399,1725565833531,-150.0,0.00014799,2]
[337270400,1725565833543,-150.0,0.00014817,2]
[337270401,1725565833553,-1387.65475,0.0001483,2]
[337270402,1725565833562,-150.0,0.00014839,2]
[337270403,1725565833571,-150.0,0.00014849,2]
[337270404,1725565833581,-150.0,0.0001486,2]
[337270405,1725565833590,-150.0,0.00014861,2]
[337270406,1725565833600,-453.1284,0.00014877,2]
[337270407,1725565833610,-15345.2854,0.00014877,2]
[337270408,1725565833620,-2143.3785,0.00014878,2]
[337270409,1725565833630,-474.71712093,0.00014878,2]
[337270410,1725565833639,-150.0,0.00014879,2]
[337270411,1725565833649,-474.7171209,0.0001488,2]
[337270412,1725565833658,-150.0,0.00014881,2]
[337270413,1725565833668,-474.7171209,0.00014883,2]
[337270414,1725565833678,-474.7171209,0.00014885,2]
[337270415,1725565833688,-474.7171209,0.00014888,2]
[337270416,1725565833698,-474.7171209,0.0001489,2]
[337270417,1725565833708,-474.7171209,0.00014893,2]
[337270418,1725565833717,-159.64355935,0.00014895,2]
[337270419,1725565833727,-474.7171209,0.00014895,2]
[337270420,1725565833737,-153.66948665,0.00014896,2]
[337270421,1725565833747,-474.7171209,0.00014898,2]
[337270422,1725565833756,-474.7171209,0.000149,2]
[337270423,1725565833766,-1000.0,0.000149,2]
[337270424,1725565833775,-150.0,0.00014902,2]
[337270425,1725565833786,-150.0,0.00014923,2]
[337270426,1725565833796,-150.0,0.00014924,2]
[337270427,1725565833806,-150.0,0.00014944,2]
[337270428,1725565833816,-150.0,0.00014965,2]
[337270429,1725565833825,-500.0,0.00014973,2]
[337270430,1725565833835,-290.348,0.00014973,2]
[337270431,1725565833844,-829.986,0.00014973,2]
[337270432,1725565833854,-11640.7144529,0.00014975,3]
[337270433,1725565833865,-52383.2150382,0.00014976,3]
[337270434,1725565833874,-272.88180775,0.00014976,3]
[337270435,1725565833884,-151.0,0.00014976,2]
[337270436,1725565833895,-207.051494,0.00014976,2]
[337270437,1725565833904,-5820.35722647,0.00014976,3]
[337270438,1725565833915,-343.320508,0.00014977,2]
[337270439,1725565833925,-343.320508,0.00014977,2]
[337270440,1725565833935,-212.652615,0.00014977,2]
[337270441,1725565833945,-212.652615,0.00014977,2]
[337270442,1725565833954,-151.0,0.00014977,2]
[337270443,1725565833964,-159.964452,0.00014977,2]
[337270444,1725565833973,-159.964452,0.00014977,2]
[337270445,1725565833982,-159.964452,0.00014977,2]
[337270446,1725565833991,-159.964452,0.00014977,2]
[337270447,1725565834001,-151.0,0.00014977,2]
[337270448,1725565834010,-17461.0716794,0.00014977,3]
[337270449,1725565834020,-272.88180775,0.00014977,3]
[337270450,1725565834030,-151.89,0.00014977,2]
[337270451,1725565834048,-40742.5005853,0.00014978,3]
[337270452,1725565834058,-272.88180775,0.00014978,3]
[337270453,1725565834068,-500.0,0.00014978,2]
[337270454,1725565834077,-500.0,0.00014978,2]
[337270455,1725565834087,-343.320508,0.00014978,2]
[337270456,1725565834097,-343.320508,0.00014978,2]
[337270457,1725565834106,-500.0,0.00014978,2]
[337270458,1725565834115,-500.0,0.00014978,2]
[337270459,1725565834125,-212.652615,0.00014978,2]
[337270460,1725565834136,-212.652615,0.00014978,2]
[337270461,1725565834147,-500.0,0.00014978,2]
[337270462,1725565834161,-500.0,0.00014978,2]
[337270463,1725565834171,-500.0,0.00014978,2]
[337270464,1725565834180,-500.0,0.00014978,2]
[337270465,1725565834190,-500.0,0.00014978,2]
[337270466,1725565834201,-500.0,0.00014978,2]
[337270467,1725565834211,-500.0,0.00014978,2]
[337270468,1725565834220,-500.0,0.00014978,2]
[337270469,1725565834231,-500.0,0.00014978,2]
[337270470,1725565834240,-500.0,0.00014978,2]
[337270471,1725565834250,-500.0,0.00014978,2]
[337270472,1725565834260,-1304.03,0.00014978,2]
[337270473,1725565834270,-159.964452,0.00014978,2]
[337270474,1725565834279,-159.964452,0.00014978,2]
[337270475,1725565834293,-159.964452,0.00014978,2]
[337270476,1725565834304,-159.964452,0.00014978,2]
[337270477,1725565834314,-500.0,0.00014978,2]
[337270478,1725565834324,-500.0,0.00014978,2]
[337270479,1725565834336,-500.0,0.00014978,2]
[337270480,1725565834347,-1191.92,0.00014978,2]
[337270481,1725565834358,-1662.78,0.00014978,2]
[337270482,1725565834368,-5247.11,0.00014978,2]
[337270483,1725565834378,-500.0,0.00014978,2]
[337270484,1725565834388,-622.23,0.00014978,2]
[337270485,1725565834398,-1615.99,0.00014978,2]
[337270486,1725565834407,-500.0,0.00014978,2]
[337270487,1725565834416,-599.96,0.00014978,2]
[337270488,1725565834425,-500.0,0.00014978,2]
[337270489,1725565834435,-500.0,0.00014978,2]
[337270490,1725565834444,-500.0,0.00014978,2]
[337270491,1725565834453,-500.0,0.00014978,2]
[337270492,1725565834463,-3669.02,0.00014978,2]
[337270493,1725565834472,-500.0,0.00014978,2]
[337270494,1725565834482,-500.0,0.00014978,2]
[337270495,1725565834492,-496.57205505,0.00014978,2]
[337270496,1725565834507,-368.04794495,0.00014978,2]
[337270497,1725565834517,-4.29791963,0.00014978,2]
[337270498,1725565834530,-465.0,0.00014978,2]
[337270499,1725565834552,-853.54208037,0.00014978,2]
[337270500,1725565834562,-1790.03,0.00014978,2]
[337270501,1725565834571,-2782.37,0.00014978,2]
[337270502,1725565834581,-638.89350261,0.00014978,2]
[337270503,1725565838297,-254.78096739,0.00014978,2]
[337270504,1725565838309,-389.67719237,0.00014978,2]
[337270505,1725565838453,-2584.01833763,0.00014978,2]
[337270506,1725565838462,-500.0,0.00014978,2]
[337270507,1725565838472,-631.7,0.00014978,2]
[337270508,1725565838482,-500.0,0.00014978,2]
[337270509,1725565838491,-500.0,0.00014978,2]
[337270510,1725565838501,-890.84358237,0.00014978,2]
[337270511,1725565838513,-370.67641763,0.00014978,2]
[337270512,1725565838522,-1380.41,0.00014978,2]
[337270513,1725565838532,-1625.38,0.00014978,2]
[337270514,1725565838546,-1418.59,0.00014978,2]
[337270515,1725565838555,-500.0,0.00014978,2]
[337270516,1725565838565,-1513.41,0.00014978,2]
[337270517,1725565838574,-648.09,0.00014978,2]
[337270518,1725565838583,-2415.02,0.00014978,2]
[337270519,1725565838593,-500.0,0.00014978,2]
[337270520,1725565838603,-1915.35,0.00014978,2]
[337270521,1725565838612,-500.0,0.00014978,2]
[337270522,1725565838621,-500.0,0.00014978,2]
[337270523,1725565838630,-500.0,0.00014978,2]
[337270524,1725565838640,-558.51,0.00014978,2]
[337270525,1725565838649,-516.61,0.00014978,2]
[337270526,1725565838659,-537.07,0.00014978,2]
[337270527,1725565838668,-500.0,0.00014978,2]
[337270528,1725565838678,-500.0,0.00014978,2]
[337270529,1725565838687,-500.0,0.00014978,2]
[337270530,1725565838696,-500.0,0.00014978,2]
[337270531,1725565838705,-106.18358237,0.00014978,2]
[337270536,1725565840134,-667.35641763,0.00014978,2]
[337270537,1725565840143,-960.52,0.00014978,2]
[337270538,1725565840364,-73.96330991,0.00014978,2]
[337270539,1725565840376,-426.03669009,0.00014978,2]
[337270540,1725565840386,-535.03,0.00014978,2]
[337270541,1725565840396,-500.0,0.00014978,2]
[337270542,1725565840405,-500.0,0.00014978,2]
[337270543,1725565840414,-551.67,0.00014978,2]
[337270544,1725565840423,-2377.73,0.00014978,2]
[337270545,1725565840433,-500.0,0.00014978,2]
[337270546,1725565840442,-516.52,0.00014978,2]
[337270547,1725565840452,-500.0,0.00014978,2]
[337270548,1725565840461,-500.0,0.00014978,2]
[337270549,1725565840470,-500.0,0.00014978,2]
[337270550,1725565840479,-500.0,0.00014978,2]
[337270551,1725565840488,-2950.94,0.00014978,2]
[337270552,1725565840497,-500.0,0.00014978,2]
[337270553,1725565840507,-748.77,0.00014978,2]
[337270554,1725565840516,-500.39840682,0.00014978,2]
[337270555,1725565840525,-151.0,0.00014978,2]
[337270556,1725565840534,-151.0,0.00014978,2]
[337270557,1725565840545,-151.0,0.00014978,2]
[337270558,1725565840554,-151.0,0.00014978,2]
[337270559,1725565840565,-3120.36,0.00014978,2]
[337270560,1725565840574,-880.78,0.00014978,2]
[337270562,1725565840583,-1640.37,0.00014978,2]
[337270564,1725565840592,-270.26477817,0.00014978,2]
[337270566,1725565840601,-1431.95,0.00014978,2]
[337270568,1725565840609,-500.0,0.00014978,2]
[337270569,1725565840618,-500.0,0.00014978,2]
[337270571,1725565840627,-500.0,0.00014978,2]
[337270573,1725565840636,-343.320508,0.00014979,2]
[337270575,1725565840646,-343.320508,0.00014979,2]
[337270577,1725565840655,-212.652615,0.00014979,2]
[337270579,1725565840666,-212.652615,0.00014979,2]
[337270581,1725565840675,-159.964452,0.00014979,2]
[337270583,1725565840684,-159.964452,0.00014979,2]
[337270585,1725565840693,-159.964452,0.00014979,2]
[337270587,1725565840702,-159.964452,0.00014979,2]
[337270589,1725565840711,-151.0,0.00014979,2]
[337270591,1725565840721,-23281.4289059,0.00014979,3]
[337270593,1725565840730,-5820.35722647,0.00014983,3]
[337270595,1725565840739,-500.0,0.00014983,2]
[337270597,1725565840747,-500.0,0.00014983,2]
[337270599,1725565840756,-500.0,0.00014983,2]
[337270601,1725565840765,-509.61005373,0.00014983,2]
[337270603,1725565840774,-500.0,0.00014983,2]
[337270604,1725565840783,-299.94,0.00014983,2]
[337270606,1725565840794,-500.0,0.00014983,2]
[337270608,1725565840803,-500.0,0.00014983,2]
[337270610,1725565840814,-658.54,0.00014983,2]
[337270612,1725565840822,-592.32,0.00014983,2]
[337270614,1725565840831,-328.97935095,0.00014983,2]
[337270616,1725565840841,-500.0,0.00014983,2]
[337270618,1725565840851,-500.0,0.00014983,2]
[337270620,1725565840861,-500.0,0.00014983,2]
[337270622,1725565840870,-500.0,0.00014983,2]
[337270624,1725565840879,-582.73,0.00014983,2]
[337270626,1725565840888,-532.73,0.00014983,2]
[337270628,1725565840897,-343.320508,0.00014983,2]
[337270630,1725565840906,-343.320508,0.00014983,2]
[337270632,1725565840915,-343.320508,0.00014983,2]
[337270634,1725565840924,-343.320508,0.00014983,2]
[337270636,1725565840933,-343.320508,0.00014983,2]
[337270638,1725565840943,-343.320508,0.00014983,2]
[337270639,1725565840952,-500.0,0.00014983,2]
[337270641,1725565840961,-343.320508,0.00014983,2]
[337270643,1725565840970,-343.320508,0.00014983,2]
[337270644,1725565840979,-343.320508,0.00014983,2]
[337270645,1725565840989,-343.320508,0.00014983,2]
[337270646,1725565840998,-343.320508,0.00014983,2]
[337270647,1725565841008,-343.320508,0.00014983,2]
[337270648,1725565841019,-500.0,0.00014983,2]
[337270649,1725565841028,-500.0,0.00014983,2]
[337270650,1725565841037,-500.0,0.00014983,2]
[337270651,1725565841052,-500.0,0.00014983,2]
[337270652,1725565841061,-500.0,0.00014983,2]
[337270653,1725565841070,-500.0,0.00014983,2]
[337270654,1725565841079,-212.652615,0.00014983,2]
[337270655,1725565841088,-212.652615,0.00014983,2]
[337270656,1725565841098,-212.652615,0.00014983,2]
[337270657,1725565841107,-212.652615,0.00014983,2]
[337270658,1725565841116,-212.652615,0.00014983,2]
[337270659,1725565841125,-212.652615,0.00014983,2]
[337270660,1725565841134,-212.652615,0.00014983,2]
[337270661,1725565841143,-212.652615,0.00014983,2]
[337270662,1725565841152,-212.652615,0.00014983,2]
[337270663,1725565841164,-212.652615,0.00014983,2]
[337270664,1725565841173,-212.652615,0.00014983,2]
[337270665,1725565841182,-212.652615,0.00014983,2]
[337270666,1725565841191,-500.0,0.00014983,2]
[337270667,1725565841200,-305.73874803,0.00014983,2]
[337270668,1725565841209,-159.964452,0.00014983,2]
[337270669,1725565841218,-159.964452,0.00014983,2]
[337270670,1725565841227,-159.964452,0.00014983,2]
[337270671,1725565841238,-159.964452,0.00014983,2]
[337270672,1725565841247,-159.964452,0.00014983,2]
[337270673,1725565841256,-159.964452,0.00014983,2]
[337270674,1725565841265,-159.964452,0.00014983,2]
[337270675,1725565841274,-159.964461,0.00014983,2]
[337270676,1725565841283,-500.0,0.00014983,2]
[337270677,1725565841294,-500.0,0.00014983,2]
[337270678,1725565841303,-583.70573507,0.00014983,2]
[337270679,1725565841312,-500.0,0.00014983,2]
[337270680,1725565841321,-500.0,0.00014983,2]
[337270681,1725565841332,-500.0,0.00014983,2]
[337270682,1725565841341,-500.0,0.00014983,2]
[337270683,1725565841350,-736.41,0.00014983,2]
[337270684,1725565841359,-668.91,0.00014983,2]
[337270685,1725565841367,-500.0,0.00014983,2]
[337270686,1725565841376,-500.0,0.00014983,2]
[337270687,1725565841385,-500.0,0.00014983,2]
[337270688,1725565841394,-500.0,0.00014983,2]
[337270689,1725565841403,-500.0,0.00014983,2]
[337270690,1725565841412,-500.0,0.00014983,2]
[337270691,1725565841421,-16862.69,0.00014983,2]
[337270692,1725565841430,-2286.94,0.00014983,2]
[337270693,1725565841439,-500.0,0.00014983,2]
[337270694,1725565841449,-6818.78,0.00014983,2]
[337270695,1725565841457,-1635.68,0.00014983,2]
[337270696,1725565841467,-500.0,0.00014983,2]
[337270697,1725565841475,-500.0,0.00014983,2]
[337270698,1725565841484,-500.0,0.00014983,2]
[337270699,1725565841493,-317.76,0.00014983,2]